bitfinex/quotes_ETHUSD_20220218
["timestamp","ask_amount","ask_price","bid_price","bid_amount"]
[1645206663760,0.64667928,2789.5,2789.2,0.02159615]
[1645206663960,1.54102424,2789.5,2789.2,0.02159615]
[1645206664163,1.84102424,2789.5,2789.2,0.02159615]
[1645206664362,2.14102424,2789.5,2789.2,0.02159615]
[1645206664565,3.03786424,2789.5,2789.2,0.02159615]
[1645206664768,6.53786424,2789.5,2789.2,0.02159615]
[1645206665216,6.83136439,2789.5,2789.2,0.02159615]
[1645206665413,1.0,2789.4,2789.2,0.02159615]
[1645206666219,1.0,2789.4,2787.5,1.79592]
[1645206666220,14.58611616,2789.3,2787.5,1.79592]
[1645206666416,14.58611616,2789.3,2787.5,0.002]
[1645206666417,10.93,2788.5,2787.5,0.002]
[1645206666615,11.5262,2788.5,2787.5,0.002]
[1645206666816,10.93,2788.3,2787.5,0.002]
[1645206667015,0.1792,2788.2,2787.5,0.002]
[1645206667216,11.55646798,2787.6,2787.5,0.002]
[1645206667418,0.92646798,2787.6,2787.5,0.002]
[1645206667613,11.85646798,2787.6,2787.5,0.002]
[1645206668016,0.92646798,2787.6,2787.5,0.002]
[1645206668217,0.3,2787.6,2787.5,0.002]
[1645206668862,1.7953344,2787.7,2787.5,0.002]
[1645206669062,3.15247023,2788.1,2787.5,0.002]
[1645206669063,0.03507023,2788.1,2787.5,0.002]
[1645206669263,0.5620939,2788.2,2787.5,0.62280885]
[1645206669663,2.6927,2788.4,2787.5,0.62280885]
[1645206670462,0.8971954,2788.2,2787.8,0.00127047]
[1645206670864,0.89713,2788.2,2787.8,0.00127047]
[1645206671065,0.3692,2788.6,2787.8,0.00127047]
[1645206671263,0.3692,2788.6,2787.9,0.1793]
[1645206671463,0.3692,2788.6,2787.8,0.00127047]
[1645206671662,0.3692,2788.6,2787.9,0.0010856]
[1645206671663,1.2662897,2788.6,2787.9,0.0010856]
[1645206671861,0.3,2788.5,2787.9,0.0010856]
[1645206672064,1.19707,2788.5,2787.9,0.0010856]
[1645206672264,0.3,2788.2,2787.9,0.0010856]
[1645206672711,1.1972091,2788.2,2787.9,0.0010856]
[1645206672909,1.1972091,2788.2,2788.1,0.00108552]
[1645206673109,1.4972091,2788.2,2788.1,0.00108552]
[1645206673311,1.1972091,2788.2,2788.1,0.00108552]
[1645206673712,2.3943791,2788.2,2788.1,0.00108552]
[1645206674110,1.7943791,2788.2,2788.0,0.00108554]
[1645206674510,0.3,2788.1,2788.0,0.00108554]
[1645206674711,2.0943791,2788.2,2788.0,0.00108554]
[1645206674911,0.3,2788.1,2788.0,0.00108554]
[1645206675213,0.3,2788.1,2788.0,0.00108107]
[1645206675612,11.23,2788.1,2788.0,0.00108107]
[1645206675811,11.4092,2788.1,2788.0,8.107e-05]
[1645206676011,12.4092,2788.1,2788.0,8.107e-05]
[1645206676461,12.4092,2788.1,2787.9,0.00108109]
[1645206676666,12.1092,2788.0,2787.9,0.00108109]
[1645206676864,12.4092,2788.0,2787.9,0.00108109]
[1645206677466,12.23,2788.0,2787.9,0.00108109]
[1645206677663,12.23,2788.0,2787.7,0.02703202]
[1645206677867,12.53168797,2787.9,2787.7,0.02703202]
[1645206678064,1.79523,2787.8,2787.7,0.02703202]
[1645206678265,13.02523,2787.8,2787.7,0.02703202]
[1645206678467,16.52523,2787.8,2787.5,0.002]
[1645206678665,16.52523,2787.8,2786.5,0.00335235]
[1645206678666,10.93,2787.4,2786.5,0.00335235]
[1645206678866,17.81686164,2787.3,2787.2,0.00434102]
[1645206679065,19.01463164,2787.3,2787.2,0.00434102]
[1645206679266,19.31463164,2787.3,2787.2,0.00434102]
[1645206679465,3.98686164,2787.3,2787.2,0.00434102]
[1645206679865,2.19148164,2787.3,2787.2,0.00434102]
[1645206680112,2.19148164,2787.3,2786.3,0.00335235]
[1645206680113,1.19148164,2787.3,2787.1,0.00108529]
[1645206680715,2.08900274,2787.3,2787.1,0.00108529]
[1645206681112,3.88412274,2787.3,2787.1,0.00108529]
[1645206681312,3.88412274,2787.3,2787.1,0.00108531]
[1645206682414,3.88412274,2787.3,2787.1,0.00108384]
[1645206682614,2.98668274,2787.3,2787.1,0.00108384]
[1645206683764,2.98683044,2787.3,2787.1,0.00108384]
[1645206683962,3.0029329,2787.3,2787.2,0.02577521]
[1645206684363,3.1052641,2787.3,2787.2,0.02577521]
[1645206684967,1.2075841,2787.3,2787.2,0.02577521]
[1645206685365,0.6075841,2787.3,2787.2,0.02577521]
[1645206685969,0.01610246,2787.3,2787.2,0.02577521]
[1645206688814,0.31610246,2787.3,2787.2,0.02577521]
[1645206689314,0.61610246,2787.3,2787.2,0.02577521]
[1645206689916,1.52414365,2787.3,2787.1,0.00108423]
[1645206690214,2.42169365,2787.3,2787.1,0.00108423]
[1645206690818,2.42169365,2787.3,2787.1,0.00119669]
[1645206692262,2.42167325,2787.3,2787.1,0.00119669]
[1645206692462,3.5,2787.2,2787.1,0.00119669]
[1645206692666,3.5,2787.2,2786.6,0.00478747]
[1645206692667,6.0,2787.1,2786.6,0.00478747]
[1645206692863,10.93,2786.9,2786.6,0.00478747]
[1645206693063,1.07743,2786.8,2786.6,0.00478747]
[1645206693264,1.07743,2786.8,2786.6,0.00957503]
[1645206693265,10.93,2786.7,2786.6,0.00957503]
[1645206693468,10.93,2786.7,2785.3,1.22]
[1645206693469,10.93,2786.6,2785.4,0.00335235]
[1645206693663,10.93,2786.4,2785.4,0.00335235]
[1645206693865,10.93,2786.2,2785.2,0.00335235]
[1645206694063,10.93,2786.2,2784.9,0.00335235]
[1645206694064,0.50706735,2785.3,2784.9,0.00335235]
[1645206694264,0.89817,2786.0,2785.5,0.90419396]
[1645206694265,3.5,2786.0,2785.5,0.90419396]
[1645206694563,0.8981272,2785.8,2785.5,0.90419396]
[1645206694765,0.8981272,2785.8,2785.5,0.90754631]
[1645206695015,0.3,2785.7,2785.5,0.90419396]
[1645206695609,0.3,2785.7,2785.1,0.89794]
[1645206695813,0.3,2785.7,2785.1,0.00335235]
[1645206695814,3.8,2785.7,2785.1,0.00335235]
[1645206696014,11.8281887,2785.5,2785.0,0.04092649]
[1645206696210,11.1094,2785.5,2785.0,0.04092649]
[1645206696408,11.1094,2785.5,2784.8,0.04206334]
[1645206696409,1.0,2785.4,2784.8,0.04206334]
[1645206696609,0.89843,2785.3,2784.4,0.04433703]
[1645206696810,0.60501633,2785.0,2784.4,0.04433703]
[1645206697210,0.3,2785.3,2784.4,0.04433703]
[1645206697610,1.2388,2785.9,2784.4,0.04433703]
[1645206697809,0.89806,2785.6,2784.4,0.04433703]
[1645206698011,0.89806,2785.6,2784.4,0.94250703]
[1645206698212,0.60759315,2785.1,2784.7,0.00125441]
[1645206698612,0.60759315,2785.1,2784.8,0.04206334]
[1645206698613,0.90759315,2785.1,2784.8,0.04206334]
[1645206699467,1.80580485,2785.1,2784.8,0.04206334]
[1645206699767,1.80580485,2785.1,2784.6,0.04320019]
[1645206699968,3.00403485,2785.1,2784.6,0.04320019]
[1645206700365,1.80580485,2785.1,2784.6,0.04320019]
[1645206700565,1.80580485,2785.1,2784.4,0.04433703]
[1645206700566,0.90759315,2785.1,2784.4,0.04433703]
[1645206700766,0.3,2785.1,2784.4,0.04433703]
[1645206700967,0.3,2785.1,2784.5,0.89812]
[1645206701172,0.03858935,2785.6,2784.5,1.31847235]
[1645206701369,0.03858935,2785.6,2784.6,1.5717246]
[1645206701566,0.03858935,2785.6,2784.8,0.89789]
[1645206701766,0.03858935,2785.6,2784.9,0.00335235]
[1645206701967,0.03858935,2785.6,2785.5,0.59490985]
[1645206702722,0.03858935,2785.6,2785.5,0.54490985]
[1645206703622,0.0010382,2786.5,2785.8,0.8977]
[1645206703925,0.0010382,2786.5,2785.9,1.31454]
[1645206704122,0.0010382,2786.5,2786.0,0.58248315]
[1645206704525,0.0010382,2786.5,2786.1,0.417]
[1645206704721,0.0010382,2786.5,2786.2,0.89749]
[1645206704924,0.0010382,2786.5,2786.3,0.417]
[1645206705125,0.0010382,2786.5,2786.3,0.46560545]
[1645206705923,0.0010382,2786.5,2786.4,1.79474]
[1645206706122,0.0010382,2786.5,2786.4,2.21174]
[1645206708770,0.0010382,2786.5,2786.4,3.73619586]
[1645206709571,3.82e-05,2786.5,2786.4,4.73619586]
[1645206709774,0.73893227,2788.1,2786.5,6.0]
[1645206710023,3.5,2788.5,2786.9,0.89712]
[1645206710024,0.1794,2788.5,2786.9,0.89712]
[1645206710212,4.0,2788.7,2787.2,1.79421]
[1645206710213,0.1792,2788.6,2787.2,1.79421]
[1645206710413,0.1792,2788.6,2787.3,0.417]
[1645206710612,0.00952493,2788.9,2787.3,0.417]
[1645206710613,0.1792,2788.8,2787.3,0.417]
[1645206710813,0.8971243,2788.5,2787.3,1.31411]
[1645206711014,1.0763243,2788.5,2787.3,1.31411]
[1645206711514,0.52651439,2788.2,2787.3,1.31411]
[1645206711715,0.52651439,2788.2,2787.3,0.417]
[1645206711914,0.89727,2788.1,2787.3,0.417]
[1645206712314,0.3,2788.0,2787.3,0.417]
[1645206712618,0.3,2788.0,2787.4,0.89721]
[1645206712813,0.897242,2788.1,2787.6,0.7049677]
[1645206713015,1.97367,2788.6,2787.7,0.417]
[1645206713016,0.1792,2788.6,2787.7,0.417]
[1645206713216,0.00957976,2788.9,2787.7,0.417]
[1645206713770,0.91613545,2788.9,2787.7,1.31402]
[1645206714066,0.91613545,2788.9,2788.4,0.59769943]
[1645206714067,0.00957019,2788.9,2788.4,0.59769943]
[1645206714867,0.00957019,2788.9,2788.4,0.53496653]
[1645206715072,0.00239118,2789.1,2788.4,0.53496653]
[1645206715667,0.6023566,2789.1,2788.4,0.53496653]
[1645206715868,0.00239118,2789.1,2788.4,0.53496653]
[1645206716069,0.00239125,2789.1,2788.5,0.417]
[1645206716270,0.00239125,2789.1,2788.6,0.00462065]
[1645206716469,0.00239125,2789.1,2788.7,0.417]
[1645206717068,0.00239125,2789.1,2789.0,0.61226438]
[1645206717269,0.00239125,2789.1,2789.0,1.02926438]
[1645206717547,0.00239177,2789.1,2789.0,1.02926438]
[1645206718331,0.00239177,2789.1,2789.0,1.31356]
[1645206718534,0.60160373,2789.6,2788.6,0.00462065]
[1645206718535,0.00239202,2789.2,2788.6,0.00462065]
[1645206719533,0.63909823,2789.1,2788.6,0.00462065]
[1645206719730,0.00473872,2789.0,2788.6,0.00462065]
[1645206719930,0.01766767,2789.0,2788.6,0.00462065]
[1645206724265,0.01766767,2789.0,2788.7,0.89681]
[1645206724464,0.01766767,2789.0,2788.8,0.62341622]
[1645206725525,0.01766767,2789.0,2788.7,0.89681]
[1645206725725,0.01766767,2789.0,2788.4,0.89691]
[1645206726619,0.89703,2788.9,2788.3,0.51578813]
[1645206726820,0.3,2788.8,2788.2,0.53861875]
[1645206727025,0.6,2788.8,2788.2,0.53861875]
[1645206727222,12.32582163,2789.0,2788.2,0.53861875]
[1645206727622,12.7242131,2788.8,2788.2,0.53861875]
[1645206727921,12.7242131,2788.8,2787.5,2.2436]
[1645206727922,0.8972377,2788.1,2787.6,0.61307338]
[1645206728121,0.8972377,2788.1,2787.1,1.8153]
[1645206728324,0.8972377,2788.1,2787.1,1.79447]
[1645206728522,0.60117471,2788.3,2787.1,1.79447]
[1645206728763,0.90117471,2788.3,2787.1,1.79447]
[1645206729166,0.01766767,2789.0,2787.7,0.55825153]
[1645206729371,0.00956438,2788.9,2787.8,0.417]
[1645206729565,0.00956438,2788.9,2788.0,1.79368]
[1645206729765,0.00956438,2788.9,2788.1,0.417]
[1645206729968,0.00956438,2788.9,2788.1,2.6311]
[1645206730165,0.00956438,2788.9,2788.6,0.71170755]
[1645206730366,0.00956438,2788.9,2788.6,1.60856755]
[1645206730566,0.01195795,2789.1,2788.6,1.60856755]
[1645206731768,0.00239184,2789.1,2788.6,1.60856755]
[1645206732170,0.00239184,2789.1,2788.7,0.417]
[1645206732369,0.00239184,2789.1,2788.8,0.89664]
[1645206732621,0.00239184,2789.1,2788.9,0.417]
[1645206732818,0.00239184,2789.1,2789.0,1.79312]
[1645206733021,3.07247023,2790.2,2789.1,0.68752159]
[1645206733022,0.00956622,2789.5,2789.1,0.68752159]
[1645206733220,0.00956622,2789.5,2789.2,0.89655]
[1645206733423,0.00956622,2789.5,2789.2,6.60654]
[1645206733620,0.00560431,2790.6,2789.3,6.0]
[1645206733818,0.00560431,2790.6,2789.2,6.00999]
[1645206733819,0.00560431,2790.8,2789.5,2.68874]
[1645206734022,0.00560431,2790.8,2789.7,0.89626]
[1645206734225,0.00560431,2790.8,2790.7,0.62150002]
[1645206734420,0.5,2791.0,2790.4,0.417]
[1645206734619,0.70580813,2791.5,2790.4,0.417]
[1645206734620,0.00560431,2790.9,2790.4,0.417]
[1645206734819,0.00560431,2791.4,2790.4,0.417]
[1645206735324,0.00560431,2791.4,2790.5,0.89616]
[1645206735518,0.00560431,2791.4,2790.8,0.52240085]
[1645206735719,0.00560431,2791.4,2790.8,1.41855085]
[1645206736273,0.00560431,2791.4,2790.9,3.917]
[1645206736471,0.00560431,2791.8,2790.9,2.20873]
[1645206736671,0.5,2792.3,2791.1,0.89585]
[1645206736672,0.00254838,2791.2,2791.1,0.89585]
[1645206736870,0.00254838,2791.2,2791.1,1.31285]
[1645206737972,0.1791,2792.6,2791.1,1.31285]
[1645206737973,11.11470431,2792.6,2791.1,1.31285]
[1645206738169,12.06470431,2792.6,2791.1,1.31285]
[1645206738374,10.93,2792.3,2791.1,0.417]
[1645206738570,0.18470431,2792.2,2791.1,0.417]
[1645206738770,1.18470431,2792.2,2791.1,0.417]
[1645206738971,0.74874543,2792.2,2791.5,0.58348045]
[1645206739171,0.56964543,2792.2,2791.5,0.58348045]
[1645206739373,0.00560431,2792.2,2791.5,0.58348045]
[1645206740218,0.6,2792.5,2791.5,0.58348045]
[1645206740219,0.00560431,2792.4,2791.5,0.58348045]
[1645206740422,0.00560431,2792.4,2791.3,2.84173]
[1645206740623,0.00560431,2792.4,2791.8,0.89582]
[1645206740822,0.30560431,2792.6,2791.8,0.89582]
[1645206741221,0.30560431,2792.6,2791.4,1.0]
[1645206741422,0.00254413,2792.2,2791.4,1.417]
[1645206741622,0.00254413,2792.2,2791.9,0.58413784]
[1645206742624,0.00256992,2792.2,2791.9,0.58413784]
[1645206743626,0.00256992,2792.2,2791.8,0.8958]
[1645206743869,0.00256992,2792.2,2791.7,0.02340135]
[1645206744267,0.00256992,2792.2,2791.8,0.89581]
[1645206744973,0.00256992,2792.1,2791.8,0.89581]
[1645206745569,0.00256992,2792.1,2792.0,0.52868915]
[1645206746169,0.00237096,2792.1,2792.0,0.52868915]
[1645206747611,0.00237095,2792.2,2792.0,0.52868915]
[1645206748613,0.00237094,2792.2,2792.0,0.52868915]
[1645206748812,0.00237094,2792.2,2792.0,1.42443915]
[1645206749317,0.00237094,2792.2,2792.1,0.417]
[1645206749716,7.094e-05,2792.2,2792.1,0.417]
[1645206749915,0.00239107,2792.2,2792.1,0.717]
[1645206750115,0.00956283,2792.7,2792.3,1.79089]
[1645206750317,0.00956283,2792.7,2792.4,0.95732552]
[1645206750715,0.00956283,2792.7,2792.4,1.95732552]
[1645206751115,0.0129869,2793.7,2792.4,3.74822552]
[1645206751371,0.01859121,2793.7,2792.6,1.79092]
[1645206751573,0.0129869,2793.7,2792.6,1.79092]
[1645206751770,0.0129869,2793.7,2792.4,3.26032552]
[1645206751771,11.109,2793.7,2792.4,3.26032552]
[1645206751970,0.50669207,2793.5,2792.4,3.26032552]
[1645206752170,0.50669207,2793.5,2792.9,0.66759304]
[1645206752171,0.00560431,2793.4,2792.9,0.66759304]
[1645206752369,0.00560431,2793.4,2792.4,2.303]
[1645206752569,0.00560431,2793.4,2792.4,2.85280485]
[1645206752769,0.90125481,2793.4,2792.4,2.85280485]
[1645206753169,0.3,2793.3,2792.4,0.54980485]
[1645206753370,0.00260084,2793.0,2792.4,0.54980485]
[1645206753771,0.00260084,2793.0,2791.7,2.9145]
[1645206753970,0.00260084,2793.0,2791.7,2.7356]
[1645206753971,0.8958325,2792.9,2791.7,2.7356]
[1645206754171,0.00560431,2792.8,2791.6,5.341]
[1645206754371,1.5,2792.4,2791.6,4.341]
[1645206754571,0.00560431,2792.3,2791.3,0.1789]
[1645206754771,0.00560431,2792.3,2791.7,0.6925075]
[1645206755021,0.18450431,2792.3,2791.7,0.6925075]
[1645206755227,0.00560431,2792.3,2791.7,0.6925075]
[1645206755623,0.90158431,2792.3,2791.7,0.6925075]
[1645206755824,0.00560431,2792.3,2791.7,0.6925075]
[1645206756024,0.00820509,2792.3,2791.7,0.6925075]
[1645206756725,0.00820509,2792.3,2791.7,1.5883675]
[1645206756925,0.00820509,2792.3,2791.7,2.0053675]
[1645206757226,0.00820509,2792.3,2791.7,2.6051527]
[1645206757424,0.00260078,2792.3,2791.8,0.1789]
[1645206757625,0.00260078,2792.3,2791.9,0.417]
[1645206757825,0.00260078,2792.3,2792.0,0.1789]
[1645206758026,0.00260078,2792.3,2792.0,0.5959]
[1645206758425,0.00260078,2792.3,2792.0,0.417]
[1645206758426,0.002368,2792.3,2792.0,0.417]
[1645206758626,0.002368,2792.3,2792.1,1.79121]
[1645206759066,0.002368,2792.3,2792.2,0.56667086]
[1645206759667,0.00236811,2792.3,2792.2,0.56667086]
[1645206760965,0.0023681,2792.4,2792.0,0.89575]
[1645206761374,0.0023681,2792.4,2791.9,0.01873274]
[1645206761666,0.0023681,2792.4,2791.9,0.91452274]
[1645206761866,0.00239083,2792.3,2792.1,0.70182641]
[1645206762514,0.00239083,2792.3,2792.1,1.59754641]
[1645206763516,0.00239083,2792.3,2792.1,0.89572]
[1645206763715,0.00239083,2792.3,2791.9,0.01873274]
[1645206764317,0.00478166,2792.3,2791.9,0.01873274]
[1645206764516,0.00239083,2792.3,2791.9,0.01873274]
[1645206765114,0.00239083,2792.3,2791.9,0.8957]
[1645206765515,0.00238805,2792.3,2791.9,0.8957]
[1645206765714,0.00238805,2792.3,2792.0,3.10716]
[1645206765914,0.00238805,2792.3,2792.1,0.65463742]
[1645206766768,0.00238812,2792.3,2792.1,0.65463742]
[1645206768174,0.00238812,2792.3,2792.1,0.83353742]
[1645206768373,0.00238812,2792.3,2792.1,1.25053742]
[1645206768572,0.00238812,2792.3,2792.1,2.86287742]
[1645206769176,0.00238855,2792.3,2792.1,2.86287742]
[1645206770020,0.00238855,2792.3,2792.1,2.8890661]
[1645206771420,0.0047771,2792.3,2792.1,2.8890661]
[1645206771621,0.00238855,2792.3,2792.1,2.8890661]
[1645206772721,0.00238844,2792.3,2792.1,7.88801918]
[1645206772921,0.00238844,2792.3,2792.1,7.97413534]
[1645206773123,0.00955231,2792.8,2792.3,0.00421469]
[1645206773321,0.00955231,2792.8,2792.4,1.31255]
[1645206773985,0.48450431,2793.6,2793.2,0.66122091]
[1645206774184,0.7789,2793.6,2793.2,0.66122091]
[1645206774388,2.67446,2793.6,2793.2,0.66122091]
[1645206774583,0.1789,2793.6,2793.2,0.66122091]
[1645206774784,0.00560431,2793.9,2793.2,0.66122091]
[1645206774988,2.84580896,2794.3,2793.3,3.5]
[1645206774989,0.18450431,2794.2,2793.3,3.5]
[1645206775186,0.5179658,2794.3,2793.2,0.66122091]
[1645206775187,0.00560431,2794.0,2793.2,0.66122091]
[1645206775384,0.5179658,2794.3,2793.2,0.66122091]
[1645206775385,0.00560431,2794.1,2793.2,0.66122091]
[1645206775584,0.00560431,2794.2,2793.2,1.55657091]
[1645206775783,0.00560431,2794.2,2793.8,0.71408467]
[1645206775985,1.4133386,2794.3,2793.8,0.71408467]
[1645206776386,1.22373997,2794.3,2793.8,0.71408467]
[1645206776583,0.89536,2794.1,2793.1,1.548]
[1645206776785,1.7907981,2794.1,2793.1,1.548]
[1645206776987,0.00560431,2794.0,2793.1,0.417]
[1645206777614,0.00260075,2793.7,2793.1,0.417]
[1645206777815,0.28657228,2794.3,2793.5,0.68006569]
[1645206778320,0.1306804,2794.8,2793.7,6.0]
[1645206778520,0.0143349,2794.9,2793.6,0.60916329]
[1645206778521,0.0143349,2794.9,2793.8,0.5959]
[1645206778720,0.0143349,2794.9,2793.9,0.417]
[1645206778918,0.0143349,2794.9,2794.0,0.1789]
[1645206779117,0.0143349,2794.9,2794.1,0.417]
[1645206779319,0.0143349,2794.9,2794.4,0.54860054]
[1645206780423,0.0143349,2794.9,2794.4,0.96560054]
[1645206780621,0.0143349,2794.9,2794.5,0.1789]
[1645206780821,0.0143349,2794.9,2794.6,0.417]
[1645206781021,0.0143349,2794.9,2794.7,3.6789]
[1645206781265,1.8685507,2795.2,2794.9,2.0]
[1645206781266,0.01039339,2795.2,2794.9,2.0]
[1645206781467,0.01039339,2795.2,2795.0,0.5957]
[1645206781865,7.29269269,2796.4,2795.0,1.5957]
[1645206782064,20.50055649,2796.6,2795.1,0.89465]
[1645206782270,2.96577609,2796.4,2795.1,1.31165]
[1645206782465,0.00259867,2795.2,2795.1,1.97339265]
[1645206782867,0.00259867,2795.2,2795.1,1.07874265]
[1645206783767,0.8948338,2795.9,2794.5,1.78953]
[1645206783768,11.82488,2795.5,2794.5,1.78953]
[1645206783968,11.82488,2795.5,2794.2,0.1788]
[1645206783969,11.80995023,2795.5,2794.2,0.1788]
[1645206784170,0.6,2795.4,2794.1,2.2099]
[1645206784366,0.3,2795.4,2794.1,2.2099]
[1645206784565,11.4089,2795.7,2794.1,2.3888]
[1645206784765,0.58073791,2795.4,2794.7,0.64622259]
[1645206785033,0.88073791,2795.4,2794.7,0.64622259]
[1645206785221,0.01512689,2794.8,2794.7,0.64622259]
[1645206786821,0.00259831,2795.3,2794.8,4.5]
[1645206787021,0.00259831,2795.3,2794.9,0.89463]
[1645206787224,0.00259831,2795.3,2794.9,2.19463]
[1645206787424,0.00259831,2795.3,2795.0,0.5958]
[1645206787823,0.00259831,2795.3,2795.1,5.8865]
[1645206788023,0.00259831,2795.3,2795.2,0.417]
[1645206788229,9.831e-05,2795.3,2795.2,2.97823824]
[1645206788425,0.01039062,2796.0,2795.3,6.0]
[1645206788426,0.01039188,2796.0,2795.3,6.0]
[1645206788629,0.01039188,2796.0,2795.4,5.417]
[1645206788874,0.01039188,2796.0,2795.4,4.39989]
[1645206789075,0.01039188,2796.0,2795.4,3.6916]
[1645206789277,0.01039188,2796.0,2795.7,0.67614912]
[1645206789475,0.01039188,2796.0,2795.8,0.417]
[1645206789675,0.0431246,2796.8,2795.8,0.417]
[1645206790279,0.0431246,2796.8,2795.8,0.5958]
[1645206790476,0.0431246,2796.8,2796.5,0.64048772]
[1645206790679,0.0431246,2796.8,2796.0,0.417]
[1645206790978,0.0431246,2796.8,2795.5,2.2707]
[1645206790979,0.89704795,2796.4,2795.5,2.2707]
[1645206791178,0.89704795,2796.4,2795.4,1.9746]
[1645206791577,0.58083352,2796.0,2795.4,1.9746]
[1645206791779,0.8948,2795.9,2795.3,5.55368916]
[1645206792821,0.00236729,2796.0,2795.3,5.55368916]
[1645206793019,0.00236729,2796.0,2795.3,6.44834916]
[1645206793316,0.00236733,2795.7,2795.3,5.55368916]
[1645206794318,0.00220806,2795.6,2795.3,5.55368916]
[1645206794720,0.00220806,2795.6,2795.3,5.73238916]
[1645206795519,0.00220806,2795.6,2795.3,5.55368916]
[1645206795720,0.00220807,2795.6,2795.3,5.55368916]
[1645206796120,10.86973863,2796.5,2795.8,0.63105079]
[1645206796375,10.86973863,2796.5,2795.3,5.0]
[1645206796376,0.8947878,2796.1,2795.3,5.0]
[1645206796572,1.1947878,2796.1,2795.3,5.0]
[1645206796774,1.4947878,2796.1,2795.3,5.0]
[1645206796973,1.6734878,2796.1,2795.3,5.0]
[1645206797174,0.6282385,2795.6,2795.3,5.0]
[1645206797372,2.4180537,2795.6,2795.3,5.0]
[1645206797574,2.7180537,2795.6,2795.4,0.5]
[1645206797773,2.7180537,2795.6,2795.3,5.0]
[1645206797977,2.7180537,2795.6,2795.3,5.00120948]
[1645206798574,14.5430937,2795.6,2795.3,5.00120948]
[1645206798774,12.82503,2795.5,2795.3,5.00120948]
[1645206798975,12.77503,2795.5,2795.3,5.00120948]
[1645206799176,0.3,2795.4,2795.3,5.00120948]
[1645206799376,0.3,2795.4,2794.0,5.4415]
[1645206799377,10.93,2795.3,2794.0,5.4415]
[1645206799577,12.42537532,2795.2,2794.0,0.1787]
[1645206799775,12.42537532,2795.2,2793.9,1.8947]
[1645206799776,10.93,2795.0,2793.9,1.8947]
[1645206800039,1.074002,2795.1,2793.9,1.8947]
[1645206800040,0.1789,2795.1,2793.9,1.8947]
[1645206800229,0.60020532,2795.2,2794.0,0.1789]
[1645206800430,0.66017603,2795.1,2794.4,0.64836641]
[1645206800829,0.96017603,2795.1,2794.4,0.64836641]
[1645206801228,11.89017603,2795.1,2793.9,1.8947]
[1645206801630,11.89017603,2795.1,2794.6,0.00119065]
[1645206801929,1.7902955,2795.0,2794.6,0.00119065]
[1645206802429,1.7902955,2795.0,2793.9,1.8947]
[1645206802430,0.3,2794.9,2794.2,0.70641369]
[1645206802929,2.09029,2794.9,2794.2,0.70641369]
[1645206803330,1.79029,2794.9,2794.2,0.70641369]
[1645206803529,0.89516,2795.0,2793.9,1.84631944]
[1645206803530,0.64516,2795.0,2793.9,3.81523944]
[1645206803773,0.64516,2795.0,2794.0,0.417]
[1645206803977,0.60020532,2795.2,2794.1,0.1789]
[1645206804376,0.60020532,2795.2,2794.1,1.07392]
[1645206804675,0.60020532,2795.2,2794.7,0.5100278]
[1645206805478,0.60020532,2795.2,2794.7,1.4048578]
[1645206805878,0.60020532,2795.2,2794.7,0.5100278]
[1645206806780,0.60020532,2795.2,2794.6,0.00131127]
[1645206807619,1.49517532,2795.2,2794.6,0.00131127]
[1645206807818,0.64089203,2795.1,2794.6,0.00131127]
[1645206808019,1.49517532,2795.2,2794.6,0.00131127]
[1645206808618,2.39581161,2795.2,2794.6,0.00131127]
[1645206808817,2.39581161,2795.2,2794.6,0.00116722]
[1645206809219,1.79032,2795.0,2794.6,0.00116722]
[1645206809422,0.8950525,2795.1,2794.6,0.00116722]
[1645206809719,0.57548922,2795.0,2794.6,0.00116722]
[1645206809921,1.47052922,2795.0,2794.6,0.00233444]
[1645206810122,0.89504,2795.0,2794.6,0.00116722]
[1645206810517,0.89504,2795.0,2794.6,5.00116722]
[1645206811119,0.89504,2795.0,2794.6,5.00233444]
[1645206811379,1.57558953,2795.0,2794.6,5.00116722]
[1645206812375,0.89504,2795.0,2794.6,5.0023554]
[1645206812575,0.00997695,2795.1,2794.6,5.00118818]
[1645206813576,0.00997695,2795.1,2794.9,0.55534287]
[1645206813775,0.00997695,2795.1,2794.6,5.00118818]
[1645206813977,0.31555324,2795.1,2794.6,5.00118818]
[1645206814777,1.21062594,2795.1,2794.6,5.00118818]
[1645206815030,1.73528575,2795.1,2794.6,5.00118818]
[1645206815423,0.01692483,2794.9,2794.6,5.00118818]
[1645206815725,0.8952,2794.8,2794.6,5.00118818]
[1645206816122,0.8952,2794.8,2794.6,5.00119135]
[1645206816923,4.39527,2794.7,2794.6,5.00119135]
[1645206817224,4.69527,2794.7,2794.6,5.00119135]
[1645206817425,1.19527,2794.7,2794.6,5.00119135]
[1645206818429,1.19527,2794.7,2794.6,5.0]
[1645206818624,0.3,2794.7,2794.6,5.0]
[1645206818870,0.3,2794.7,2794.6,4.22424756]
[1645206819076,0.3,2794.7,2793.3,0.1789]
[1645206819077,10.93,2794.3,2793.3,0.1789]
[1645206819274,10.93,2794.3,2793.0,2.2363]
[1645206819275,0.89556,2794.0,2793.0,2.2363]
[1645206819471,3.5,2793.9,2793.2,0.126929]
[1645206819673,0.3,2793.9,2793.2,0.126929]
[1645206819872,0.3,2794.1,2793.2,0.126929]
[1645206820071,0.58173921,2793.8,2793.2,0.126929]
[1645206820270,0.89548,2793.7,2793.2,0.126929]
[1645206820776,0.3,2793.6,2793.2,0.126929]
[1645206821372,2.09133,2793.6,2793.2,0.126929]
[1645206821572,2.9868666,2793.6,2793.2,0.126929]
[1645206823120,0.3,2793.6,2793.2,0.126929]
[1645206823321,0.3,2793.6,2793.3,0.00138828]
[1645206824521,0.3,2793.6,2793.3,0.00138826]
[1645206825725,0.3,2793.6,2793.4,0.03036923]
[1645206825925,2.7909684,2793.7,2793.4,0.03036923]
[1645206825926,1.7909684,2793.7,2793.4,0.03036923]
[1645206826130,0.89548,2793.7,2793.4,0.03036923]
[1645206826773,0.89538,2793.9,2793.4,0.03175744]
[1645206826975,0.13763781,2794.4,2793.4,0.03175744]
[1645206826976,0.1789,2794.6,2793.4,0.03175744]
[1645206827171,0.18447629,2794.7,2793.4,0.03175744]
[1645206827372,0.00557629,2794.7,2793.4,0.03175744]
[1645206827573,0.8952477,2794.6,2793.4,0.03175744]
[1645206827977,1.41380075,2794.4,2793.5,0.62050862]
[1645206828176,0.3,2794.2,2793.8,0.00115894]